bitfinex-derivatives/quotes_BTCF0:USTF0_20250901
["timestamp","ask_amount","ask_price","bid_price","bid_amount"]
[1756770649352,0.90987328,109250.0,109240.0,0.08167]
[1756770649751,0.54907328,109250.0,109240.0,0.08167]
[1756770649942,0.90987328,109250.0,109240.0,0.08167]
[1756770652055,0.6708,109250.0,109240.0,0.08167]
[1756770652257,0.90987328,109250.0,109240.0,0.08167]
[1756770654556,0.90987328,109250.0,109240.0,0.04627]
[1756770655253,0.6708,109250.0,109240.0,0.08167]
[1756770655455,0.54907328,109250.0,109240.0,0.08167]
[1756770655656,0.90987328,109250.0,109240.0,0.08167]
[1756770657550,0.6708,109250.0,109240.0,0.08167]
[1756770657755,0.90987328,109250.0,109240.0,0.08167]
[1756770658851,0.90987328,109250.0,109240.0,0.95167]
[1756770660057,0.37,109250.0,109240.0,1.80154328]
[1756770660250,0.37,109250.0,109240.0,1.86670325]
[1756770660452,0.01867177,109260.0,109250.0,0.0959]
[1756770660653,0.38867177,109260.0,109250.0,0.16105997]
[1756770661161,0.98854505,109260.0,109250.0,0.16105997]
[1756770661561,0.62774505,109260.0,109250.0,0.0959]
[1756770661861,0.62974505,109260.0,109250.0,0.16105997]
[1756770662163,0.63074505,109260.0,109250.0,0.16105997]
[1756770662755,0.63074505,109260.0,109250.0,1.03097997]
[1756770662951,0.63074505,109260.0,109250.0,0.14682997]
[1756770663262,0.63074505,109260.0,109250.0,0.06515997]
[1756770663263,0.86981833,109260.0,109250.0,0.06515997]
[1756770663659,0.86981833,109260.0,109250.0,0.08844997]
[1756770663965,0.63074505,109260.0,109250.0,0.08844997]
[1756770664257,0.63074505,109260.0,109250.0,0.02329]
[1756770665061,0.63074505,109260.0,109250.0,0.04627]
[1756770665259,0.63074505,109260.0,109250.0,0.08361]
[1756770665861,0.63074505,109260.0,109250.0,0.09856]
[1756770667360,0.99154505,109260.0,109250.0,0.09856]
[1756770667562,0.63074505,109260.0,109250.0,0.16367719]
[1756770668065,0.63074505,109260.0,109250.0,0.16367043]
[1756770668656,0.99154505,109260.0,109250.0,0.16367043]
[1756770668858,0.99154505,109260.0,109250.0,0.11138043]
[1756770669060,0.99154505,109260.0,109250.0,0.04627]
[1756770669256,0.99154505,109260.0,109250.0,0.1800395]
[1756770670363,0.99154505,109260.0,109250.0,0.1650895]
[1756770670871,0.75247177,109260.0,109250.0,0.1650895]
[1756770671062,0.99154505,109260.0,109250.0,0.1650895]
[1756770671458,0.99154505,109260.0,109250.0,0.08361]
[1756770675883,0.99154505,109260.0,109250.0,0.14865538]
[1756770676178,0.75247177,109260.0,109250.0,0.16360538]
[1756770676384,0.49247177,109260.0,109250.0,0.16360538]
[1756770676971,0.75247177,109260.0,109250.0,0.16360538]
[1756770677272,0.39167177,109260.0,109250.0,0.16360538]
[1756770678483,0.63074505,109260.0,109250.0,0.16360538]
[1756770678695,0.04167177,109260.0,109250.0,0.40267866]
[1756770678982,0.34167177,109260.0,109250.0,0.94843328]
[1756770679176,0.34167177,109260.0,109250.0,1.02991278]
[1756770679770,0.02167177,109260.0,109250.0,1.02991278]
[1756770679973,0.35167177,109260.0,109250.0,1.02991278]
[1756770680380,0.36167177,109260.0,109250.0,1.02991278]
[1756770680783,0.04167177,109260.0,109250.0,1.02991278]
[1756770681083,0.40167177,109260.0,109250.0,1.6603595]
[1756770681278,0.64074505,109260.0,109250.0,1.4103595]
[1756770681577,0.64074505,109260.0,109250.0,0.5408395]
[1756770681885,1.00154505,109260.0,109250.0,0.95785746]
[1756770682676,0.99954505,109260.0,109250.0,0.95785746]
[1756770683286,1.00054505,109260.0,109250.0,0.95785746]
[1756770683683,1.00154505,109260.0,109250.0,0.95785746]
[1756770683878,1.00154505,109260.0,109250.0,0.98235746]
[1756770684185,1.00154505,109260.0,109250.0,0.91731]
[1756770685384,1.00154505,109260.0,109250.0,0.04779]
[1756770685579,2.24061833,109260.0,109250.0,0.04779]
[1756770685983,2.00154505,109260.0,109250.0,0.04779]
[1756770686379,3.36005833,109260.0,109240.0,0.0814795]
[1756770686573,2.87098505,109260.0,109250.0,0.06506659]
[1756770686887,2.87098505,109260.0,109250.0,0.11321659]
[1756770686888,2.36234505,109260.0,109250.0,0.11321659]
[1756770687079,3.23170505,109260.0,109250.0,0.04815]
[1756770687382,3.47077833,109260.0,109240.0,0.15055659]
[1756770687580,0.59987328,109250.0,109240.0,0.15055659]
[1756770687784,0.90987328,109250.0,109240.0,0.15055659]
[1756770689085,0.91087328,109250.0,109240.0,0.15055659]
[1756770690585,0.91087328,109250.0,109240.0,0.11321659]
[1756770690785,0.91087328,109250.0,109240.0,0.15055659]
[1756770691088,0.91087328,109250.0,109240.0,0.11321659]
[1756770691681,0.6718,109250.0,109240.0,0.11321659]
[1756770691886,0.91087328,109250.0,109240.0,0.15055659]
[1756770692389,0.91087328,109250.0,109240.0,0.11321659]
[1756770693590,0.6718,109250.0,109240.0,0.15055659]
[1756770693888,0.91087328,109250.0,109240.0,0.15055659]
[1756770694587,0.91087328,109250.0,109240.0,0.15057205]
[1756770694776,0.91087328,109250.0,109230.0,1.0361695]
[1756770694980,0.6718,109250.0,109240.0,0.06508269]
[1756770696189,0.91087328,109250.0,109240.0,0.06508269]
[1756770696385,0.91087328,109250.0,109230.0,1.0358195]
[1756770696585,0.23907328,109240.0,109230.0,1.0358195]
[1756770696888,0.60907328,109240.0,109230.0,1.0358195]
[1756770697085,0.96987328,109240.0,109230.0,0.11187557]
[1756770697277,0.96987328,109240.0,109220.0,0.0814795]
[1756770697278,2.32810656,109240.0,109220.0,0.0814795]
[1756770697483,0.83894656,109230.0,109220.0,0.0814795]
[1756770697683,1.21894656,109230.0,109220.0,0.0814795]
[1756770697891,1.21794656,109230.0,109220.0,0.0814795]
[1756770698484,1.21794656,109230.0,109220.0,0.06508743]
[1756770698876,1.46694656,109230.0,109220.0,0.06508743]
[1756770699990,1.46794656,109230.0,109220.0,0.06508743]
[1756770700191,1.47094656,109230.0,109220.0,0.06508743]
[1756770700892,1.47194656,109230.0,109220.0,0.06508743]
[1756770701094,1.47194656,109230.0,109210.0,0.15017743]
[1756770701391,0.59987328,109220.0,109210.0,0.15017743]
[1756770701584,0.90987328,109220.0,109210.0,0.15017743]
[1756770702189,0.89699916,109220.0,109210.0,0.15017743]
[1756770702586,0.90987328,109220.0,109210.0,0.15017743]
[1756770702793,0.91187328,109220.0,109210.0,0.15017743]
[1756770703185,0.312,109220.0,109210.0,0.15017743]
[1756770703491,0.55107328,109220.0,109210.0,0.15017743]
[1756770703685,0.91187328,109220.0,109210.0,0.15017743]
[1756770703888,0.91287328,109220.0,109210.0,0.15017743]
[1756770706597,0.91287328,109220.0,109210.0,0.06508743]
[1756770707197,0.91287328,109220.0,109210.0,0.08978743]
[1756770709800,0.91287328,109220.0,109210.0,0.11293743]
[1756770710298,0.91287328,109220.0,109210.0,0.15017743]
[1756770711093,0.91287328,109220.0,109210.0,0.11293743]
[1756770715095,0.91287328,109220.0,109210.0,0.15017743]
[1756770715294,1.91287328,109220.0,109210.0,0.15017743]
[1756770715794,1.6738,109220.0,109210.0,0.15017743]
[1756770716100,1.91287328,109220.0,109210.0,0.15017743]
[1756770718199,1.60287328,109220.0,109210.0,0.15017743]
[1756770718399,1.97287328,109220.0,109210.0,0.15017743]
[1756770719399,1.62287328,109220.0,109210.0,0.15017743]
[1756770719704,1.96287328,109220.0,109210.0,0.15017743]
[1756770720396,1.60287328,109220.0,109210.0,0.15017743]
[1756770720603,1.92287328,109220.0,109210.0,0.15017743]
[1756770721194,1.56207328,109220.0,109210.0,0.15017743]
[1756770721795,1.003,109220.0,109210.0,0.63925071]
[1756770722100,1.323,109220.0,109210.0,0.63925071]
[1756770722500,1.3838,109220.0,109210.0,1.26881743]
[1756770722701,1.59207328,109220.0,109210.0,1.01877743]
[1756770722903,1.26207328,109220.0,109210.0,1.01877743]
[1756770724198,1.60287328,109220.0,109210.0,1.01877743]
[1756770724406,1.62287328,109220.0,109210.0,1.01877743]
[1756770724601,1.60287328,109220.0,109210.0,1.01877743]
[1756770724798,1.94287328,109220.0,109210.0,0.15017743]
[1756770724998,1.94287328,109220.0,109210.0,0.06508743]
[1756770725200,1.94287328,109220.0,109210.0,0.08851743]
[1756770725706,1.94287328,109220.0,109210.0,0.11337743]
[1756770726202,1.94287328,109220.0,109210.0,0.06508743]
[1756770727010,2.81135328,109220.0,109210.0,0.06508743]
[1756770728702,2.81135328,109220.0,109210.0,0.08851743]
[1756770729302,2.81127328,109220.0,109210.0,0.14721743]
[1756770731008,2.81127328,109220.0,109210.0,0.08213]
[1756770731398,1.94287328,109220.0,109210.0,0.08213]
[1756770733097,1.58207328,109220.0,109210.0,0.08213]
[1756770733308,1.94287328,109220.0,109210.0,0.08213]
[1756770736003,1.94287328,109220.0,109210.0,0.04829]
[1756770736203,1.94287328,109220.0,109210.0,0.08213]
[1756770736606,1.94287328,109220.0,109210.0,0.04829]
[1756770737204,1.94287328,109220.0,109200.0,1.44776703]
[1756770737409,0.23907328,109210.0,109200.0,1.49601703]
[1756770737708,0.25907328,109210.0,109200.0,1.28658821]
[1756770737906,0.57907328,109210.0,109200.0,1.28658821]
[1756770738405,0.58007328,109210.0,109200.0,1.28658821]
[1756770738606,0.58007328,109210.0,109200.0,0.37021821]
[1756770738805,0.94087328,109210.0,109200.0,0.13910894]
[1756770739006,0.94087328,109210.0,109200.0,0.17294894]
[1756770739811,0.94087328,109210.0,109200.0,0.09154821]
[1756770740406,0.94087328,109210.0,109200.0,0.17296935]
[1756770740913,0.94087328,109210.0,109200.0,0.05770821]
[1756770742613,0.94087328,109210.0,109200.0,0.13911062]
[1756770742815,0.94087328,109210.0,109200.0,0.09082062]
[1756770743210,0.94087328,109210.0,109200.0,0.00941821]
[1756770743718,0.94087328,109210.0,109200.0,0.03284821]
[1756770743913,0.94087328,109210.0,109200.0,0.00941821]
[1756770744114,0.94087328,109210.0,109200.0,0.11423212]
[1756770744416,0.94087328,109210.0,109200.0,0.03284821]
[1756770744917,0.94087328,109210.0,109200.0,0.1142304]
[1756770745215,0.93087328,109210.0,109200.0,0.1390904]
[1756770746111,0.26007328,109210.0,109200.0,0.1390904]
[1756770746420,0.26007328,109210.0,109200.0,0.46604821]
[1756770746717,0.341,109210.0,109200.0,0.46604821]
[1756770747307,0.021,109210.0,109200.0,0.46604821]
[1756770747506,0.321,109210.0,109200.0,0.46604821]
[1756770747713,0.001,109210.0,109200.0,1.29512149]
[1756770748217,0.001,109210.0,109200.0,1.40919279]
[1756770748814,0.001,109210.0,109200.0,1.50076069]
[1756770749018,0.001,109210.0,109200.0,1.58212298]
[1756770749315,0.001,109210.0,109200.0,1.64598282]
[1756770749703,0.001,109210.0,109200.0,1.76005412]
[1756770750012,0.001,109210.0,109200.0,2.38858084]
[1756770750315,6.44e-05,109210.0,109200.0,2.38858084]
[1756770750516,6.44e-05,109210.0,109200.0,2.27450954]
[1756770750716,1.0,109220.0,109200.0,2.24166954]
[1756770751024,1.02,109220.0,109210.0,0.79580385]
[1756770751214,1.02,109220.0,109210.0,1.76332385]
[1756770751720,1.02,109220.0,109210.0,1.64952328]
[1756770752220,1.02,109220.0,109210.0,1.41045]
[1756770752416,1.02,109220.0,109210.0,1.49170437]
[1756770752715,1.02,109220.0,109210.0,0.44293]
[1756770752913,1.56907328,109220.0,109210.0,1.35774437]
[1756770753217,1.56907328,109220.0,109210.0,0.99694437]
[1756770753418,1.56907328,109220.0,109210.0,0.12954437]
[1756770753620,1.56907328,109220.0,109210.0,0.99694437]
[1756770753810,1.81907328,109220.0,109210.0,0.10468437]
[1756770754013,1.81907328,109220.0,109210.0,0.94861437]
[1756770754213,2.17987328,109220.0,109210.0,0.99690437]
[1756770754609,2.17987328,109220.0,109210.0,0.91565]
[1756770754807,2.17987328,109220.0,109210.0,0.97204437]
[1756770755922,2.17987328,109220.0,109210.0,0.08125437]
[1756770756322,2.17987328,109220.0,109200.0,1.35267273]
[1756770756622,0.23907328,109210.0,109200.0,1.35267273]
[1756770756822,0.58907328,109210.0,109200.0,1.38951273]
[1756770757622,0.94987328,109210.0,109200.0,1.02871273]
[1756770757824,0.94987328,109210.0,109200.0,0.94745836]
[1756770758124,0.94987328,109210.0,109200.0,0.99427836]
[1756770759627,0.35,109210.0,109200.0,1.35507836]
[1756770761117,0.35,109210.0,109200.0,1.43633273]
[1756770762218,1.3608,109220.0,109210.0,0.08366]
[1756770762423,1.6708,109220.0,109210.0,0.1487326]
[1756770763727,1.6718,109220.0,109210.0,0.1487326]
[1756770763924,1.311,109220.0,109210.0,0.5095326]
[1756770764124,1.311,109220.0,109210.0,0.44446]
[1756770764325,1.311,109220.0,109210.0,0.08366]
[1756770764626,1.313,109220.0,109210.0,0.08366]
[1756770765926,1.003,109220.0,109210.0,0.68353328]
[1756770766225,1.003,109220.0,109210.0,0.76478765]
[1756770766629,1.003,109220.0,109210.0,1.14478765]
[1756770767021,1.003,109220.0,109210.0,0.85634725]
[1756770767329,1.0,109220.0,109210.0,1.42634725]
[1756770775138,1.0,109220.0,109210.0,1.17634725]
[1756770775326,1.0,109220.0,109210.0,2.04270725]
[1756770778827,1.0,109220.0,109210.0,2.04258725]
[1756770779433,1.0,109220.0,109210.0,2.04250725]
[1756770780237,1.0,109220.0,109210.0,1.96125288]
[1756770782631,1.0,109220.0,109210.0,1.08483139]
[1756770782828,1.0,109220.0,109210.0,1.95087139]
[1756770783026,1.0,109220.0,109210.0,1.95079139]
[1756770783225,1.0,109220.0,109210.0,1.08483139]
[1756770783434,1.0,109220.0,109210.0,1.39167811]
[1756770783733,1.61907328,109220.0,109210.0,1.35483811]
[1756770783935,1.86907328,109220.0,109210.0,0.08129811]
[1756770784135,1.86907328,109220.0,109210.0,0.06504777]
[1756770784340,1.86907328,109220.0,109210.0,0.93092777]
[1756770784639,2.22987328,109220.0,109210.0,0.06504777]
[1756770785031,2.22987328,109220.0,109210.0,0.93088777]
[1756770785930,2.22987328,109220.0,109210.0,0.93084777]
[1756770786836,1.86907328,109220.0,109210.0,0.93084777]
[1756770787036,1.86907328,109220.0,109210.0,0.95493777]
[1756770787237,2.22987328,109220.0,109210.0,0.95493777]
[1756770788143,1.9908,109220.0,109210.0,0.97730777]
[1756770788344,1.86907328,109220.0,109210.0,0.94967]
[1756770788547,1.63,109220.0,109210.0,0.94967]
[1756770790143,1.86907328,109220.0,109210.0,0.94967]
[1756770792738,1.86907328,109220.0,109210.0,0.04646]
[1756770792933,1.86907328,109220.0,109210.0,0.88898]
[1756770793248,1.86907328,109220.0,109210.0,0.91198]
[1756770793747,2.22987328,109220.0,109210.0,0.91198]
[1756770798444,1.97987328,109220.0,109210.0,0.04646]
[1756770798646,2.22987328,109220.0,109210.0,0.93039708]
[1756770799744,2.23087328,109220.0,109210.0,0.08857708]
[1756770799953,2.23287328,109220.0,109210.0,0.93031708]
[1756770801746,2.24035388,109220.0,109210.0,0.93031708]
[1756770801951,2.24035388,109220.0,109210.0,0.06511708]
[1756770802849,2.24035388,109220.0,109210.0,0.08857708]
[1756770803450,2.24035388,109220.0,109210.0,0.06511708]
[1756770805748,1.99035388,109220.0,109210.0,0.06511708]
[1756770807153,2.85519388,109220.0,109210.0,0.06511708]
[1756770807746,1.98287328,109220.0,109210.0,0.06511708]
[1756770808060,2.84763328,109220.0,109210.0,0.06511708]
[1756770808355,2.84763328,109220.0,109210.0,0.08857708]
[1756770808759,1.7438,109220.0,109210.0,0.11157708]
[1756770808958,1.98287328,109220.0,109210.0,0.11157708]
[1756770809159,2.84759328,109220.0,109210.0,0.11157708]
[1756770810255,2.84759328,109220.0,109210.0,0.14898708]
[1756770810760,2.60844,109220.0,109210.0,0.14898708]
[1756770810960,1.98287328,109220.0,109210.0,0.14898708]
[1756770811660,1.62207328,109220.0,109210.0,0.14898708]
[1756770811960,1.98287328,109220.0,109210.0,0.14898708]
[1756770813957,1.7438,109220.0,109210.0,0.14898708]
[1756770814157,1.383,109220.0,109210.0,0.14898708]
[1756770814660,1.62207328,109220.0,109210.0,0.14898708]
[1756770815564,1.363,109220.0,109210.0,0.14898708]
[1756770816063,1.60207328,109220.0,109210.0,0.14898708]
[1756770816262,1.003,109220.0,109210.0,0.94294328]
[1756770816458,1.003,109220.0,109210.0,0.57294328]
[1756770816660,1.003,109220.0,109210.0,1.28374328]
[1756770816861,1.003,109220.0,109210.0,1.36504139]
[1756770817264,1.003,109220.0,109210.0,1.10660099]
[1756770817467,1.001,109220.0,109210.0,1.35530288]
[1756770818269,1.0,109220.0,109210.0,1.35530288]
[1756770820060,1.0,109220.0,109210.0,1.46910345]
[1756770820564,1.0,109220.0,109210.0,1.35530288]
[1756770821668,1.0,109220.0,109210.0,1.46910345]
[1756770824371,1.0,109220.0,109210.0,1.13847057]
[1756770824560,1.0,109220.0,109210.0,2.24138385]
[1756770824870,1.0,109220.0,109210.0,1.93138385]
[1756770825170,1.0,109220.0,109210.0,1.93134385]
[1756770825374,1.0,109220.0,109210.0,1.06754385]
[1756770825671,1.0,109220.0,109210.0,1.93134385]
[1756770825869,1.0,109220.0,109210.0,1.06754385]
[1756770826076,1.0,109220.0,109210.0,1.93130385]
[1756770827865,1.0,109220.0,109210.0,2.26130385]
[1756770828576,1.0,109220.0,109210.0,2.14750328]
[1756770829873,1.0,109220.0,109210.0,2.23906458]
[1756770831481,1.0,109220.0,109210.0,1.98906458]
[1756770831785,1.0,109220.0,109210.0,2.10286515]
[1756770834580,1.0,109220.0,109210.0,2.35286515]
[1756770835586,1.0,109220.0,109210.0,2.23906458]
[1756770837285,0.37952557,109270.0,109220.0,0.0915529]
[1756770837489,0.23907328,109260.0,109250.0,0.06489968]
[1756770837683,0.59907328,109260.0,109250.0,0.11441968]
[1756770837883,0.59907328,109260.0,109250.0,0.97749968]
[1756770838284,0.77740557,109270.0,109250.0,0.95281968]
[1756770838490,0.23907328,109260.0,109250.0,0.95281968]
[1756770838692,0.50907328,109260.0,109250.0,0.95281968]
[1756770839297,0.26507328,109260.0,109250.0,0.95281968]
[1756770839599,0.26507328,109260.0,109250.0,0.92789968]
[1756770839600,0.26907328,109260.0,109250.0,0.92789968]
[1756770839785,0.62987328,109260.0,109250.0,0.863]
[1756770839981,0.26907328,109260.0,109250.0,0.863]
[1756770840185,0.93987328,109260.0,109250.0,0.92789968]
[1756770840591,0.93987328,109260.0,109250.0,0.863]
[1756770840796,1.42894656,109260.0,109250.0,0.93607332]
[1756770840984,1.42894656,109260.0,109240.0,0.06489968]
[1756770841198,0.84987328,109250.0,109240.0,0.06489968]
[1756770841397,1.19987328,109250.0,109240.0,0.06489968]
[1756770841999,2.06267328,109250.0,109240.0,0.06489968]
[1756770842601,2.06667328,109250.0,109240.0,0.06489968]
[1756770843005,2.06967328,109250.0,109240.0,0.06489968]
[1756770843701,2.06967328,109250.0,109230.0,0.06489968]
[1756770843900,0.23907328,109240.0,109230.0,0.06489968]
[1756770844100,0.55907328,109240.0,109220.0,1.3540846]
[1756770844304,0.23907328,109230.0,109220.0,0.9932846]
[1756770844607,0.56907328,109230.0,109220.0,1.0293146]
[1756770845307,0.56907328,109230.0,109220.0,1.3901146]
[1756770846007,0.57007328,109230.0,109220.0,1.3901146]
[1756770846208,0.57007328,109230.0,109220.0,1.30899]
[1756770846402,0.57007328,109230.0,109220.0,1.39030907]
[1756770846602,0.57007328,109230.0,109220.0,1.39026907]
[1756770846801,0.57007328,109230.0,109220.0,0.52766907]
[1756770847002,0.57207328,109230.0,109220.0,0.52766907]
[1756770847201,0.57207328,109230.0,109220.0,1.39018907]
[1756770847401,0.57207328,109230.0,109220.0,1.30887]
[1756770847604,0.57207328,109230.0,109220.0,0.44635]
[1756770847810,0.57207328,109230.0,109220.0,1.22328]
[1756770848005,0.57207328,109230.0,109220.0,1.23091961]
[1756770848406,0.57207328,109230.0,109220.0,1.26672961]
[1756770849105,1.42194656,109230.0,109210.0,0.12830907]
[1756770849308,0.23907328,109220.0,109210.0,0.02302]
[1756770849512,0.55907328,109220.0,109210.0,0.90939]
[1756770851415,0.91987328,109220.0,109210.0,0.08805453]
[1756770851615,1.16987328,109220.0,109210.0,0.08805453]
[1756770851816,1.16987328,109220.0,109210.0,0.06503453]
[1756770853317,1.17287328,109220.0,109210.0,0.06503453]
[1756770854117,1.17287328,109220.0,109210.0,0.11202453]
[1756770855018,1.17487328,109220.0,109210.0,0.11202453]
[1756770856115,1.17487328,109220.0,109210.0,0.14783453]
[1756770856316,1.17487328,109220.0,109210.0,0.11202453]
[1756770856511,1.17487328,109220.0,109210.0,0.14783453]
[1756770857120,1.17487328,109220.0,109210.0,0.04699]
[1756770857522,1.17487328,109220.0,109210.0,0.11202453]
[1756770858016,1.17487328,109220.0,109210.0,0.04699]
[1756770858215,1.17487328,109220.0,109210.0,0.0828]
[1756770859125,1.17487328,109220.0,109210.0,0.04699]
[1756770859324,1.17487328,109220.0,109210.0,0.0828]
[1756770859518,1.17487328,109220.0,109210.0,0.14783453]
[1756770860120,1.17487328,109220.0,109210.0,0.11202453]
[1756770861224,1.17487328,109220.0,109210.0,0.14783453]
[1756770861426,1.17487328,109220.0,109210.0,0.06503453]
[1756770861826,1.17487328,109220.0,109210.0,0.08805453]
[1756770862019,1.17487328,109220.0,109210.0,0.14783453]
[1756770862220,0.255,109220.0,109210.0,0.14783453]
[1756770862417,0.005,109220.0,109210.0,0.14783453]
[1756770862619,0.005,109220.0,109210.0,0.99770781]
[1756770863219,0.335,109220.0,109210.0,0.75863453]
[1756770863821,0.332,109220.0,109210.0,0.75863453]
[1756770864327,0.333,109220.0,109210.0,0.75863453]
[1756770865421,0.57207328,109220.0,109210.0,0.75863453]
[1756770865622,0.93287328,109220.0,109210.0,1.00955453]
[1756770866423,0.57207328,109220.0,109210.0,1.00955453]
[1756770867231,0.93287328,109220.0,109210.0,0.11202453]
[1756770867427,0.57207328,109220.0,109210.0,0.14783453]
[1756770868233,0.333,109220.0,109210.0,0.14783453]
[1756770868436,0.57207328,109220.0,109210.0,0.14783453]
[1756770870433,0.93287328,109220.0,109210.0,0.14783453]
[1756770870734,0.57207328,109220.0,109210.0,0.14783453]
[1756770872539,0.57207328,109220.0,109210.0,0.14783717]
[1756770873038,0.57207328,109220.0,109210.0,0.0828]
[1756770874632,0.023,109220.0,109210.0,0.0828]
[1756770874841,0.003,109220.0,109210.0,0.0828]
[1756770875028,0.24207328,109220.0,109210.0,0.0828]
[1756770875224,0.26207328,109220.0,109210.0,0.0828]
[1756770876232,0.26207328,109220.0,109210.0,0.944]
[1756770876433,0.023,109220.0,109210.0,0.944]
[1756770876633,0.26207328,109220.0,109210.0,0.944]
[1756770877137,0.26207328,109220.0,109210.0,0.0828]
[1756770877339,0.26207328,109220.0,109210.0,1.02527907]
[1756770878941,0.26207328,109220.0,109210.0,0.16411907]
[1756770879235,0.24207328,109220.0,109210.0,0.94388]
[1756770879431,0.26207328,109220.0,109210.0,1.02519907]
[1756770880140,0.26207328,109220.0,109210.0,0.94388]
[1756770880338,0.26207328,109220.0,109210.0,1.02519907]
[1756770883745,0.56207328,109220.0,109210.0,0.16411907]
[1756770883944,0.56207328,109220.0,109210.0,1.02487907]
[1756770884842,0.55207328,109220.0,109210.0,1.02487907]
[1756770887435,0.55207328,109220.0,109210.0,0.16411907]
[1756770887636,0.55207328,109220.0,109210.0,0.0828]
[1756770888037,0.55207328,109220.0,109210.0,0.16411907]
[1756770888038,0.91287328,109220.0,109210.0,0.16411907]
[1756770888244,0.91287328,109220.0,109210.0,0.0828]
[1756770888949,0.6738,109220.0,109210.0,0.0828]
[1756770889145,0.91287328,109220.0,109210.0,0.0828]
[1756770889643,0.91287328,109220.0,109210.0,0.04699]
[1756770889852,1.16287328,109220.0,109200.0,0.10530821]
[1756770890051,0.59987328,109210.0,109200.0,0.10530821]
[1756770890247,0.96987328,109210.0,109200.0,0.18662728]
[1756770891547,0.96987328,109210.0,109200.0,0.10530821]
[1756770891742,0.96987328,109210.0,109200.0,0.00941821]
[1756770891743,1.4777944,109210.0,109200.0,0.00941821]
[1756770891949,1.23872112,109210.0,109200.0,0.07458672]
[1756770892150,1.23872112,109210.0,109200.0,0.09766672]
[1756770893644,1.23972112,109210.0,109200.0,0.07458672]
[1756770893843,1.4807944,109210.0,109200.0,0.07458672]
[1756770894240,1.4807944,109210.0,109200.0,0.00941821]
[1756770894440,1.55471429,109210.0,109200.0,0.00941821]
[1756770895155,1.30471429,109210.0,109200.0,0.03249821]
[1756770895352,1.92580101,109210.0,109200.0,0.03249821]
[1756770896041,1.92580101,109210.0,109200.0,0.00941821]
[1756770896555,2.16487429,109210.0,109200.0,0.00941821]
[1756770898149,2.41487429,109210.0,109200.0,0.00941821]
[1756770898950,1.93672773,109210.0,109200.0,0.00941821]
[1756770899159,1.06564101,109210.0,109200.0,0.05700821]
[1756770899349,1.92564101,109210.0,109200.0,0.03249821]
[1756770899747,2.16471429,109210.0,109200.0,0.03249821]
[1756770900149,1.92564101,109210.0,109200.0,0.03249821]
[1756770900455,1.92564101,109210.0,109200.0,0.00941821]
[1756770900857,1.06564101,109210.0,109200.0,0.00941821]
[1756770901149,1.92552101,109210.0,109200.0,0.09085821]
[1756770901950,1.92552101,109210.0,109200.0,0.05700821]
[1756770903148,1.06564101,109210.0,109200.0,0.05700821]
[1756770903350,1.92540101,109210.0,109200.0,0.05700821]
[1756770903850,1.92540101,109210.0,109200.0,0.03249821]
[1756770904051,1.92540101,109210.0,109200.0,0.05700821]
[1756770905359,1.92540101,109210.0,109200.0,0.10660821]
[1756770905659,1.92528101,109210.0,109200.0,0.10660821]
[1756770906150,1.06564101,109210.0,109200.0,0.10660821]
[1756770906356,1.92528101,109210.0,109200.0,0.10660821]
[1756770907752,0.45656773,109210.0,109200.0,0.35660821]
[1756770908153,0.45656773,109210.0,109200.0,0.42177672]
[1756770908352,0.35484101,109210.0,109200.0,0.42177672]
[1756770908552,0.65484101,109210.0,109200.0,0.42177672]
[1756770909960,0.33484101,109210.0,109200.0,0.42177672]
[1756770910264,0.09576773,109210.0,109200.0,0.78257672]
[1756770910756,0.02184784,109210.0,109200.0,1.39165]
[1756770910962,0.02184784,109210.0,109200.0,1.32648149]
[1756770911162,0.02184784,109210.0,109200.0,1.26648149]
[1756770911958,0.02184784,109210.0,109200.0,1.02740821]
[1756770912158,0.02184784,109210.0,109200.0,1.26648149]
[1756770912461,0.01884784,109210.0,109200.0,1.34780056]
[1756770914350,0.01884784,109210.0,109200.0,1.67844414]
[1756770914555,0.61878095,109240.0,109200.0,1.43937086]
[1756770914770,0.23907328,109230.0,109220.0,0.14629433]
[1756770915063,0.25907328,109230.0,109220.0,0.14629433]
[1756770915566,0.25907328,109230.0,109220.0,0.15421808]
[1756770916167,0.26207328,109230.0,109220.0,0.15421808]
[1756770916756,0.26407328,109230.0,109220.0,0.15421808]
[1756770917264,0.025,109230.0,109220.0,0.15421808]
[1756770917455,0.005,109230.0,109220.0,0.39329136]
[1756770917856,0.005,109230.0,109220.0,0.64329136]
[1756770918554,0.002,109230.0,109220.0,1.31409136]
[1756770918759,0.004,109230.0,109220.0,1.24913703]
[1756770918962,0.003,109230.0,109220.0,1.24913703]
[1756770919156,0.003,109230.0,109220.0,1.79785703]
[1756770919362,0.003,109230.0,109220.0,2.15785703]
[1756770919872,0.003,109230.0,109220.0,1.06006375]
[1756770920165,0.003,109230.0,109220.0,1.79781703]
[1756770921965,0.003,109230.0,109220.0,1.87054368]
[1756770922165,0.45197185,109250.0,109220.0,1.87054368]
[1756770922166,0.69104513,109250.0,109220.0,1.93538691]
[1756770922366,1.04104513,109250.0,109220.0,1.64993691]
[1756770922665,1.04104513,109250.0,109240.0,0.08134]
[1756770923361,1.29104513,109250.0,109230.0,0.08134]
[1756770923662,0.23907328,109240.0,109230.0,0.08134]
[1756770923864,0.56907328,109240.0,109230.0,0.08134]
[1756770924769,0.92987328,109240.0,109230.0,0.08134]
[1756770925266,0.57907328,109240.0,109230.0,0.08134]
[1756770925459,0.58107328,109240.0,109230.0,0.08134]
[1756770925767,0.56107328,109240.0,109230.0,0.08134]
[1756770926068,0.56207328,109240.0,109230.0,0.08134]
[1756770926463,0.96287328,109240.0,109230.0,0.08134]
[1756770931959,0.7238,109240.0,109230.0,0.04589]
[1756770932271,0.96287328,109240.0,109230.0,0.08134]
[1756770933371,0.96287328,109240.0,109230.0,0.14618323]
[1756770937273,0.93287328,109240.0,109230.0,0.14618323]
[1756770940683,0.6938,109240.0,109230.0,0.14618323]
[1756770940874,0.93287328,109240.0,109230.0,0.14618323]
[1756770943276,0.93287328,109240.0,109230.0,0.08134]
[1756770943480,0.93287328,109240.0,109230.0,0.14651506]
[1756770943683,0.93287328,109240.0,109230.0,0.08134]
[1756770943878,0.56207328,109240.0,109230.0,0.08134]
[1756770944376,0.92287328,109240.0,109230.0,0.08134]
[1756770944577,0.92287328,109240.0,109230.0,0.04589]
[1756770944773,0.92287328,109240.0,109230.0,0.06519158]
[1756770944977,1.41194656,109240.0,109230.0,0.06519158]
[1756770945177,1.17287328,109240.0,109230.0,0.06519158]
[1756770946578,2.02975328,109240.0,109230.0,0.06519158]
[1756770948685,2.02967328,109240.0,109230.0,0.06519158]
[1756770949284,2.02967328,109240.0,109220.0,0.14843158]